bitfinex/quotes_SOLUSD_20230402
["timestamp","ask_amount","ask_price","bid_price","bid_amount"]
[1680460408780,6.807,20.567,20.565,10.0]
[1680460410978,6.807,20.567,20.566,7.28122241]
[1680460412173,6.807,20.567,20.566,24.28122241]
[1680460419291,10.0,20.579,20.566,24.28122241]
[1680460419477,10.0,20.585,20.566,24.28122241]
[1680460419478,10.0,20.585,20.567,27.0]
[1680460420592,129.2229,20.586,20.567,27.0]
[1680460420593,129.2229,20.586,20.571,10.0]
[1680460420994,129.2229,20.586,20.573,10.0]
[1680460421493,129.2229,20.586,20.574,20.0]
[1680460422692,129.2229,20.586,20.572,20.0]
[1680460425493,129.2229,20.586,20.572,10.0]
[1680460425796,129.2229,20.586,20.573,20.0]
[1680460426906,129.2229,20.586,20.574,17.0]
[1680460426907,119.2229,20.586,20.574,17.0]
[1680460427089,22.39,20.6,20.575,10.0]
[1680460427405,114.0071,20.595,20.577,10.0]
[1680460427583,114.0071,20.595,20.58,22.52]
[1680460427985,114.0071,20.595,20.581,30.0]
[1680460429297,114.0071,20.595,20.581,20.0]
[1680460431502,10.0,20.59,20.581,20.0]
[1680460432105,27.0,20.591,20.581,20.0]
[1680460432601,27.0,20.591,20.581,10.0]
[1680460432801,27.0,20.591,20.583,10.0]
[1680460433004,27.0,20.591,20.584,20.0]
[1680460434190,27.0,20.591,20.582,20.0]
[1680460434393,27.0,20.591,20.581,10.0]
[1680460434594,27.0,20.591,20.582,20.0]
[1680460437009,27.0,20.591,20.58,20.0]
[1680460437191,27.0,20.591,20.581,27.0]
[1680460437387,27.0,20.591,20.582,20.0]
[1680460443207,114.0071,20.595,20.582,20.0]
[1680460447995,114.0071,20.595,20.581,20.0]
[1680460448195,10.0,20.591,20.581,20.0]
[1680460448495,10.0,20.591,20.57,118.9505]
[1680460448496,45.09,20.59,20.57,118.9505]
[1680460448695,10.0,20.589,20.575,20.0]
[1680460448895,10.0,20.587,20.575,20.0]
[1680460449106,10.0,20.585,20.575,20.0]
[1680460452816,10.0,20.587,20.575,79.28342363]
[1680460455717,10.0,20.585,20.575,20.0]
[1680460457021,10.0,20.585,20.573,10.0]
[1680460457196,10.0,20.585,20.575,10.0]
[1680460457915,10.0,20.587,20.575,10.0]
[1680460458122,10.0,20.587,20.575,69.28342363]
[1680460458515,10.0,20.587,20.575,76.56464604]
[1680460459721,10.0,20.587,20.575,66.56464604]
[1680460463619,17.0,20.588,20.575,66.56464604]
[1680460466521,17.0,20.588,20.576,10.0]
[1680460466720,10.0,20.588,20.576,10.0]
[1680460466919,17.0,20.587,20.576,10.0]
[1680460467425,17.0,20.587,20.576,76.56464604]
[1680460467628,10.0,20.591,20.576,76.56464604]
[1680460467822,10.0,20.591,20.577,17.0]
[1680460468029,10.0,20.591,20.578,10.0]
[1680460468213,10.0,20.591,20.578,17.28122241]
[1680460470430,10.0,20.591,20.578,76.56464604]
[1680460470615,128.6699,20.597,20.578,76.56464604]
[1680460470819,10.0,20.593,20.578,76.56464604]
[1680460474833,10.0,20.597,20.579,74.43952834]
[1680460475029,10.0,20.594,20.581,10.0]
[1680460475411,10.0,20.597,20.583,10.0]
[1680460475724,10.0,20.597,20.585,10.0]
[1680460476536,3.398,20.596,20.585,10.0]
[1680460477129,20.398,20.596,20.585,10.0]
[1680460477522,20.398,20.596,20.584,59.28342363]
[1680460477721,20.398,20.596,20.586,10.0]
[1680460478429,20.398,20.596,20.585,10.0]
[1680460479421,3.398,20.596,20.585,10.0]
[1680460484933,3.398,20.596,20.585,69.28342363]
[1680460485129,3.398,20.596,20.587,10.0]
[1680460489344,3.398,20.596,20.585,126.72295197]
[1680460489533,3.398,20.596,20.587,10.0]
[1680460494238,3.398,20.596,20.585,116.72295197]
[1680460494538,3.398,20.596,20.585,59.28342363]
[1680460494930,3.398,20.596,20.584,10.0]
[1680460495125,3.398,20.596,20.585,20.0]
[1680460495345,3.398,20.596,20.586,10.0]
[1680460495726,3.398,20.596,20.585,20.0]
[1680460501136,3.398,20.596,20.587,10.0]
[1680460502952,3.398,20.596,20.587,10.0]
[1680460505564,3.398,20.596,20.586,59.28342363]
[1680460507064,3.398,20.596,20.585,77.43952834]
[1680460507248,3.398,20.596,20.585,20.0]
[1680460507448,3.398,20.596,20.584,20.0]
[1680460507844,20.398,20.596,20.584,20.0]
[1680460508942,20.398,20.596,20.579,59.28342363]
[1680460508943,20.398,20.596,20.583,10.0]
[1680460509149,20.398,20.596,20.584,20.0]
[1680460510667,20.398,20.596,20.585,59.28342363]
[1680460510869,17.0,20.595,20.586,10.0]
[1680460511266,20.398,20.596,20.586,69.28342363]
[1680460512467,20.398,20.596,20.586,59.28342363]
[1680460517471,10.0,20.595,20.578,14.78377579]
[1680460517770,10.0,20.593,20.577,58.9326403]
[1680460517951,10.0,20.591,20.573,10.0]
[1680460518152,10.0,20.591,20.575,10.0]
[1680460518359,17.0,20.59,20.575,10.0]
[1680460518670,10.0,20.589,20.575,10.0]
[1680460518855,10.0,20.587,20.575,10.0]
[1680460519058,17.0,20.586,20.575,10.0]
[1680460520871,10.0,20.587,20.575,10.0]
[1680460521074,17.0,20.588,20.575,10.0]
[1680460525765,10.0,20.589,20.575,10.0]
[1680460526078,17.0,20.588,20.575,10.0]
[1680460527680,10.0,20.589,20.575,10.0]
[1680460527880,17.0,20.588,20.575,10.0]
[1680460528667,10.0,20.589,20.575,10.0]
[1680460528863,17.0,20.588,20.575,10.0]
[1680460530966,10.0,20.589,20.575,10.0]
[1680460531167,17.0,20.588,20.575,10.0]
[1680460531768,10.0,20.589,20.575,10.0]
[1680460531968,17.0,20.588,20.575,10.0]
[1680460533378,10.0,20.589,20.575,10.0]
[1680460533584,17.0,20.588,20.575,10.0]
[1680460535186,10.0,20.589,20.575,10.0]
[1680460535382,10.0,20.591,20.575,17.28122241]
[1680460535590,10.0,20.591,20.577,10.0]
[1680460535878,10.0,20.591,20.577,17.28122241]
[1680460536091,10.0,20.591,20.577,72.24286826]
[1680460536677,10.0,20.595,20.579,10.0]
[1680460536877,10.0,20.592,20.579,10.0]
[1680460539493,17.0,20.593,20.579,10.0]
[1680460548300,10.0,20.593,20.579,10.0]
[1680460550885,17.0,20.594,20.579,10.0]
[1680460554210,20.398,20.596,20.579,10.0]
[1680460556109,10.0,20.595,20.579,10.0]
[1680460556315,17.0,20.594,20.579,10.0]
[1680460556512,10.0,20.593,20.579,10.0]
[1680460560221,10.0,20.591,20.578,114.3018]
[1680460561311,10.0,20.593,20.578,114.3018]
[1680460561514,10.0,20.591,20.578,128.57830857]
[1680460563919,10.0,20.591,20.578,14.27650857]
[1680460564105,17.0,20.59,20.576,62.24286826]
[1680460564303,10.0,20.589,20.576,62.24286826]
[1680460564517,10.0,20.587,20.576,62.24286826]
[1680460564824,17.0,20.586,20.576,62.24286826]
[1680460565004,10.0,20.585,20.576,62.24286826]
[1680460565208,17.0,20.586,20.576,62.24286826]
[1680460567115,10.0,20.587,20.576,62.24286826]
[1680460567422,10.0,20.585,20.576,62.24286826]
[1680460567619,17.0,20.586,20.576,62.24286826]
[1680460569520,10.0,20.587,20.576,62.24286826]
[1680460569714,17.0,20.588,20.577,10.0]
[1680460570021,17.0,20.59,20.577,61.05470081]
[1680460570213,17.0,20.59,20.579,10.0]
[1680460570607,10.0,20.59,20.579,64.96164585]
[1680460571006,17.0,20.591,20.579,64.96164585]
[1680460571819,10.0,20.592,20.579,64.96164585]
[1680460572015,10.0,20.59,20.579,64.96164585]
[1680460572832,10.0,20.592,20.579,64.96164585]
[1680460573122,10.0,20.59,20.579,64.96164585]
[1680460573321,10.0,20.59,20.579,10.0]
[1680460574531,10.0,20.592,20.579,10.0]
[1680460574824,10.0,20.59,20.579,10.0]
[1680460575020,10.0,20.59,20.578,10.0]
[1680460576127,17.0,20.591,20.578,10.0]
[1680460579016,17.0,20.591,20.577,10.0]
[1680460580827,17.0,20.591,20.575,10.0]
[1680460581423,10.0,20.59,20.575,10.0]
[1680460581617,10.0,20.588,20.575,10.0]
[1680460582835,10.0,20.59,20.575,10.0]
[1680460583037,10.0,20.588,20.575,10.0]
[1680460584036,10.0,20.59,20.575,10.0]
[1680460584239,10.0,20.588,20.575,10.0]
[1680460585239,9.93521997,20.588,20.575,10.0]
[1680460587144,10.0,20.59,20.575,10.0]
[1680460587334,10.0,20.588,20.575,10.0]
[1680460589840,10.0,20.586,20.575,10.0]
[1680460592043,10.0,20.588,20.575,10.0]
[1680460592241,10.0,20.586,20.575,10.0]
[1680460592443,10.0,20.588,20.575,10.0]
[1680460592644,17.0,20.587,20.575,10.0]
[1680460594426,10.0,20.588,20.575,10.0]
[1680460594626,17.0,20.587,20.575,10.0]
[1680460595928,10.0,20.588,20.575,10.0]
[1680460596123,17.0,20.587,20.575,10.0]
[1680460596328,10.0,20.586,20.575,10.0]
[1680460599345,17.0,20.587,20.575,10.0]
[1680460599846,10.0,20.588,20.575,10.0]
[1680460600049,10.0,20.586,20.575,10.0]
[1680460600760,10.0,20.588,20.575,10.0]
[1680460601046,10.0,20.586,20.575,10.0]
[1680460601247,10.0,20.588,20.575,10.0]
[1680460601445,10.0,20.586,20.575,10.0]
[1680460602041,10.0,20.588,20.575,10.0]
[1680460602349,10.0,20.586,20.574,54.96164585]
[1680460602544,10.0,20.586,20.575,20.0]
[1680460602745,17.0,20.585,20.575,20.0]
[1680460609646,10.0,20.586,20.575,20.0]
[1680460609845,10.0,20.584,20.575,20.0]
[1680460610041,17.0,20.583,20.575,20.0]
[1680460610444,10.0,20.582,20.575,20.0]
[1680460610661,17.0,20.581,20.569,54.96164585]
[1680460610864,17.0,20.581,20.571,10.0]
[1680460611163,17.0,20.581,20.572,20.0]
[1680460612256,10.0,20.582,20.572,20.0]
[1680460612458,17.0,20.581,20.572,20.0]
[1680460614167,10.0,20.582,20.572,20.0]
[1680460614357,17.0,20.581,20.572,20.0]
[1680460615058,17.0,20.583,20.572,74.96164585]
[1680460615258,17.0,20.583,20.573,10.0]
[1680460615473,17.0,20.585,20.575,10.0]
[1680460616769,17.0,20.585,20.574,20.0]
[1680460619960,10.0,20.586,20.574,20.0]
[1680460620160,10.0,20.584,20.574,20.0]
[1680460620364,29.43435,20.597,20.574,20.0]
[1680460620365,29.43435,20.597,20.575,10.0]
[1680460620769,22.5,20.59,20.575,64.96164585]
[1680460620961,3.398,20.596,20.581,10.0]
[1680460621153,3.398,20.596,20.582,20.0]
[1680460621357,3.398,20.596,20.583,10.0]
[1680460621573,3.398,20.596,20.585,10.0]
[1680460622374,20.398,20.596,20.583,10.0]
[1680460622573,20.398,20.596,20.585,10.0]
[1680460623872,20.398,20.596,20.583,10.0]
[1680460624073,20.398,20.596,20.585,10.0]
[1680460624473,20.398,20.596,20.583,10.0]
[1680460624673,20.398,20.596,20.585,10.0]
[1680460625765,20.398,20.596,20.583,10.0]
[1680460625966,20.398,20.596,20.585,10.0]
[1680460626964,3.398,20.596,20.585,10.0]
[1680460629282,3.398,20.596,20.583,10.0]
[1680460629482,3.398,20.596,20.585,10.0]
[1680460630470,3.398,20.596,20.584,20.0]
[1680460644587,3.398,20.596,20.584,128.3413]
[1680460649194,3.398,20.596,20.585,10.0]
[1680460649585,3.398,20.596,20.585,17.28122241]
[1680460650281,3.398,20.596,20.585,10.0]
[1680460655705,10.0,20.601,20.585,10.0]
[1680460655886,3.398,20.596,20.585,10.0]
[1680460656296,20.398,20.596,20.584,128.3413]
[1680460659205,17.0,20.596,20.584,128.3413]
[1680460659505,3.398,20.596,20.584,128.3413]
[1680460659691,20.398,20.596,20.584,128.3413]
[1680460662907,10.0,20.595,20.584,128.3413]
[1680460663090,10.0,20.593,20.584,20.0]
[1680460663286,17.0,20.592,20.584,20.0]
[1680460663500,10.0,20.591,20.585,20.0]
[1680460663702,17.0,20.59,20.582,20.0]
[1680460667395,10.0,20.591,20.582,20.0]
[1680460667596,17.0,20.59,20.582,20.0]
[1680460668394,10.0,20.591,20.582,20.0]
[1680460668594,17.0,20.59,20.582,20.0]
[1680460670907,10.0,20.591,20.582,20.0]
[1680460671102,17.0,20.59,20.582,20.0]
[1680460671602,10.0,20.593,20.582,20.0]
[1680460671809,10.0,20.591,20.582,20.0]
[1680460672607,17.0,20.592,20.582,20.0]
[1680460675732,10.0,20.593,20.582,20.0]
[1680460675905,10.0,20.591,20.582,20.0]
[1680460676408,10.0,20.593,20.582,20.0]
[1680460676609,10.0,20.591,20.582,20.0]
[1680460679419,10.0,20.593,20.582,20.0]
[1680460679617,10.0,20.591,20.582,20.0]
[1680460681211,10.0,20.593,20.582,20.0]
[1680460681420,10.0,20.591,20.582,20.0]
[1680460681918,48.54,20.62,20.583,10.0]
[1680460682132,20.398,20.596,20.585,10.0]
[1680460684714,20.398,20.596,20.583,10.0]
[1680460684912,20.398,20.596,20.585,10.0]
[1680460687122,20.398,20.596,20.584,20.0]
[1680460687817,10.0,20.595,20.584,20.0]
[1680460688121,28.09,20.59,20.57,110.7225]
[1680460688416,10.0,20.588,20.572,10.0]
[1680460688627,10.0,20.588,20.573,20.0]
[1680460688806,17.0,20.587,20.573,20.0]
[1680460689214,10.0,20.586,20.572,20.0]
[1680460689418,17.0,20.585,20.572,20.0]
[1680460689617,10.0,20.584,20.572,20.0]
[1680460689817,10.0,20.582,20.572,20.0]
[1680460690014,10.0,20.58,20.572,20.0]
[1680460691323,10.0,20.582,20.572,20.0]
[1680460691624,10.0,20.58,20.572,20.0]
[1680460692323,10.0,20.582,20.572,20.0]
[1680460692525,10.0,20.58,20.572,20.0]
[1680460692907,17.0,20.579,20.572,20.0]
[1680460694208,17.0,20.579,20.571,20.0]
[1680460697510,10.0,20.58,20.571,20.0]
[1680460697712,10.0,20.578,20.571,20.0]
[1680460698727,10.0,20.58,20.571,20.0]
[1680460698927,10.0,20.578,20.571,20.0]
[1680460699328,10.0,20.58,20.571,20.0]
[1680460699518,10.0,20.578,20.571,20.0]
[1680460700329,10.0,20.58,20.571,20.0]
[1680460700519,17.0,20.579,20.571,20.0]
[1680460703014,10.0,20.58,20.571,20.0]
[1680460703214,10.0,20.578,20.571,20.0]
[1680460704430,17.0,20.581,20.571,20.0]
[1680460705231,10.0,20.58,20.571,20.0]
[1680460705433,17.0,20.579,20.571,20.0]
[1680460708936,17.0,20.579,20.57,110.7225]
[1680460711323,17.0,20.579,20.566,19.43514]
[1680460712238,17.0,20.579,20.565,177.90520015]
[1680460712641,17.0,20.579,20.565,185.18642256]
[1680460718346,17.0,20.579,20.566,64.96164585]
[1680460718530,10.0,20.58,20.566,64.96164585]
[1680460718730,17.0,20.579,20.568,10.0]
[1680460719249,17.0,20.579,20.568,72.24286826]
[1680460721246,10.0,20.58,20.568,72.24286826]
[1680460721543,10.0,20.578,20.568,72.24286826]
[1680460721946,10.0,20.58,20.568,72.24286826]
[1680460722137,10.0,20.578,20.568,72.24286826]
[1680460722746,10.0,20.58,20.568,72.24286826]
[1680460722950,10.0,20.578,20.568,72.24286826]
[1680460723131,10.0,20.58,20.568,72.24286826]
[1680460723332,17.0,20.579,20.568,72.24286826]
[1680460724950,10.0,20.582,20.57,10.0]
[1680460725156,10.0,20.582,20.571,20.0]
[1680460725157,17.0,20.581,20.571,20.0]
[1680460725448,10.0,20.582,20.571,20.0]
[1680460727247,10.0,20.58,20.571,20.0]
[1680460727752,17.0,20.581,20.571,20.0]
[1680460734548,10.0,20.581,20.571,20.0]
[1680460736259,10.0,20.579,20.571,20.0]
[1680460736863,17.0,20.58,20.571,20.0]
[1680460742675,17.0,20.58,20.57,54.96164585]
[1680460742861,17.0,20.58,20.568,51.05470081]
[1680460743170,17.0,20.58,20.565,122.9435543]
[1680460743759,17.0,20.58,20.565,130.22477671]
[1680460745166,17.0,20.58,20.565,185.18642256]
[1680460745672,17.0,20.58,20.566,10.0]
[1680460747371,17.0,20.58,20.566,10.0]
[1680460747562,17.0,20.58,20.566,17.28122241]
[1680460748178,17.0,20.58,20.566,72.24286826]
[1680460752166,39.5,20.58,20.566,72.24286826]
[1680460753477,39.5,20.58,20.566,62.24286826]
[1680460753776,10.0,20.579,20.566,62.24286826]
[1680460753989,17.0,20.578,20.566,54.96164585]
[1680460754171,10.0,20.577,20.561,70.49589681]
[1680460754368,10.0,20.575,20.562,20.0]
[1680460754567,17.0,20.574,20.562,20.0]
[1680460754768,10.0,20.573,20.562,20.0]
[1680460755075,10.0,20.571,20.562,20.0]
[1680460755467,17.0,20.57,20.562,20.0]
[1680460761169,17.0,20.57,20.561,51.05470081]
[1680460761885,17.0,20.57,20.559,76.3924]
[1680460768995,10.0,20.571,20.559,76.3924]
[1680460769173,10.0,20.569,20.559,76.3924]
[1680460769485,10.0,20.571,20.559,76.3924]
[1680460769673,10.0,20.571,20.559,83.67362241]
[1680460770779,17.0,20.57,20.559,83.67362241]
[1680460775593,17.0,20.57,20.559,138.63429844]
[1680460778794,10.0,20.571,20.559,138.63429844]
[1680460778989,10.0,20.569,20.559,138.63429844]
[1680460780497,10.0,20.571,20.559,138.63429844]
[1680460780797,10.0,20.569,20.559,138.63429844]
[1680460781397,17.0,20.57,20.559,138.63429844]
[1680460784294,10.0,20.589,20.559,138.63429844]
[1680460784494,112.5582,20.58,20.561,10.0]
[1680460784685,10.0,20.589,20.563,10.0]
[1680460785000,119.3116,20.585,20.565,10.0]
[1680460785793,17.0,20.578,20.565,10.0]
[1680460785999,10.0,20.577,20.565,10.0]
[1680460786199,10.0,20.575,20.565,10.0]
[1680460786901,10.0,20.577,20.565,10.0]
[1680460787195,10.0,20.575,20.565,10.0]
[1680460787506,10.0,20.575,20.564,20.0]
[1680460787701,10.0,20.577,20.564,20.0]
[1680460787998,10.0,20.575,20.565,10.0]
[1680460789088,17.0,20.576,20.565,10.0]
[1680460791212,17.0,20.576,20.564,20.0]
[1680460800801,17.0,20.576,20.564,10.0]
[1680460800992,17.0,20.576,20.565,20.0]
[1680460801605,17.0,20.576,20.564,10.0]
[1680460801793,17.0,20.576,20.565,20.0]
[1680460802405,17.0,20.576,20.564,10.0]
[1680460802608,17.0,20.576,20.563,20.0]
[1680460802609,17.0,20.576,20.565,20.0]
[1680460802793,17.0,20.576,20.563,20.0]
[1680460804503,10.0,20.575,20.563,20.0]
[1680460804809,10.0,20.573,20.563,20.0]
[1680460805014,17.0,20.572,20.563,20.0]
[1680460807204,10.0,20.573,20.563,20.0]
[1680460807402,10.0,20.571,20.563,20.0]
[1680460807602,17.0,20.572,20.563,20.0]
[1680460812518,10.0,20.573,20.563,20.0]
[1680460812717,10.0,20.571,20.563,20.0]
[1680460812919,10.0,20.573,20.563,20.0]
[1680460813218,10.0,20.571,20.563,20.0]
[1680460813419,10.0,20.573,20.563,20.0]
[1680460813607,10.0,20.571,20.563,20.0]
[1680460813803,17.0,20.57,20.563,20.0]
[1680460814219,17.0,20.572,20.563,20.0]
[1680460819227,10.0,20.573,20.563,20.0]
[1680460819524,10.0,20.571,20.563,20.0]
[1680460819916,17.0,20.57,20.563,20.0]
[1680460820525,17.0,20.57,20.564,20.0]
[1680460820728,17.0,20.572,20.564,20.0]
[1680460821114,17.0,20.572,20.563,10.0]
[1680460821422,17.0,20.572,20.564,20.0]
[1680460822110,10.0,20.573,20.564,20.0]
[1680460822313,17.0,20.572,20.564,20.0]
[1680460822521,17.0,20.572,20.563,10.0]
[1680460822825,17.0,20.572,20.564,20.0]
[1680460824027,17.0,20.572,20.563,10.0]
[1680460824211,17.0,20.572,20.564,20.0]
[1680460825219,10.0,20.573,20.564,20.0]
[1680460825525,17.0,20.572,20.563,10.0]
[1680460825723,17.0,20.572,20.565,10.0]
[1680460825927,10.0,20.575,20.565,10.0]
[1680460825928,242.55967954,20.611,20.565,10.0]
[1680460826226,846.04830548,20.609,20.565,10.0]
[1680460826427,25.42658863,20.599,20.565,10.0]
[1680460827134,25.42658863,20.598,20.565,10.0]
[1680460828217,10.0,20.575,20.563,10.0]
[1680460828418,17.0,20.576,20.565,10.0]
[1680460831420,17.0,20.576,20.564,20.0]
[1680460832329,25.42658863,20.598,20.564,20.0]
[1680460832511,25.42658863,20.599,20.565,10.0]
[1680460832712,10.0,20.577,20.565,10.0]
[1680460836130,10.0,20.577,20.564,20.0]
[1680460843046,17.0,20.578,20.564,20.0]
[1680460845236,10.0,20.577,20.564,20.0]
[1680460845426,10.0,20.575,20.565,20.0]
[1680460845819,10.0,20.573,20.565,20.0]
[1680460846429,10.0,20.573,20.564,10.0]
[1680460846630,10.0,20.573,20.565,20.0]
[1680460846834,10.0,20.573,20.563,20.0]
[1680460847339,10.0,20.575,20.563,20.0]
[1680460847520,10.0,20.573,20.563,20.0]
[1680460848736,17.0,20.574,20.563,20.0]
[1680460849637,10.0,20.573,20.563,20.0]
[1680460849834,10.0,20.571,20.563,20.0]
[1680460850040,17.0,20.57,20.563,20.0]
[1680460850635,17.0,20.57,20.563,10.0]
[1680460850937,17.0,20.57,20.561,51.05470081]
[1680460850938,10.0,20.571,20.564,20.0]
[1680460851234,17.0,20.57,20.564,20.0]
[1680460851441,17.0,20.57,20.56,30.0]
[1680460852240,10.0,20.571,20.56,30.0]
[1680460852445,17.0,20.57,20.56,30.0]
[1680460853824,10.0,20.571,20.56,30.0]
[1680460854025,17.0,20.57,20.56,30.0]
[1680460854337,17.0,20.57,20.56,20.0]
[1680460856240,17.0,20.572,20.561,10.0]
[1680460856435,17.0,20.572,20.562,20.0]
[1680460856631,32.3,20.58,20.563,10.0]
[1680460856831,32.3,20.58,20.564,20.0]
[1680460857033,32.3,20.58,20.565,10.0]
[1680460857840,10.0,20.575,20.565,10.0]
[1680460858044,10.0,20.575,20.564,74.96067603]
[1680460861246,17.0,20.576,20.564,74.96067603]
[1680460863950,10.0,20.577,20.564,74.96067603]
[1680460864151,10.0,20.575,20.564,74.96067603]
[1680460864354,10.0,20.577,20.564,74.96067603]
[1680460864550,10.0,20.575,20.564,74.96067603]
[1680460867257,10.0,20.577,20.564,74.96067603]
[1680460867438,17.0,20.574,20.564,74.96067603]
[1680460867839,10.0,20.575,20.564,74.96067603]
[1680460868039,17.0,20.574,20.564,74.96067603]
[1680460868843,10.0,20.573,20.564,20.0]
[1680460869155,17.0,20.572,20.565,20.0]
[1680460869337,17.0,20.572,20.563,20.0]
[1680460869950,17.0,20.572,20.563,10.0]
[1680460870145,17.0,20.572,20.564,20.0]
[1680460870857,17.0,20.574,20.564,20.0]
[1680460871952,17.0,20.574,20.563,10.0]
[1680460872147,17.0,20.574,20.564,20.0]
[1680460873958,10.0,20.575,20.564,20.0]
[1680460874255,10.0,20.573,20.564,20.0]
[1680460874560,17.0,20.572,20.564,20.0]
[1680460875058,17.0,20.574,20.564,20.0]
[1680460876158,10.0,20.58,20.565,10.0]
[1680460876345,32.3,20.58,20.565,10.0]
[1680460878359,10.0,20.578,20.565,10.0]
[1680460878656,10.0,20.576,20.564,30.0]
[1680460878849,10.0,20.574,20.564,20.0]
[1680460879247,17.0,20.573,20.564,20.0]
[1680460882460,10.0,20.574,20.564,20.0]
[1680460882662,10.0,20.572,20.564,20.0]
[1680460883062,10.0,20.574,20.564,20.0]
[1680460883247,10.0,20.572,20.564,20.0]
[1680460883450,10.0,20.574,20.564,20.0]
[1680460883662,17.0,20.573,20.564,20.0]
[1680460886573,10.0,20.574,20.564,20.0]
[1680460886866,17.0,20.573,20.564,20.0]
[1680460888272,10.0,20.574,20.564,20.0]
[1680460888571,17.0,20.573,20.564,20.0]
[1680460889854,10.0,20.574,20.564,20.0]
[1680460890052,17.0,20.573,20.564,20.0]
[1680460890660,17.0,20.575,20.564,20.0]
[1680460891065,32.51,20.58,20.565,10.0]
[1680460892674,10.0,20.578,20.565,10.0]
[1680460901168,32.51,20.58,20.565,10.0]
[1680460903776,13.4,20.588,20.566,17.0]
[1680460903983,13.4,20.588,20.567,10.0]
[1680460904177,13.4,20.588,20.569,10.0]
[1680460904381,13.4,20.588,20.571,10.0]
[1680460905382,10.0,20.584,20.571,10.0]
[1680460905567,10.0,20.582,20.571,10.0]
[1680460907995,10.0,20.582,20.57,110.2157]
[1680460908397,10.0,20.584,20.57,110.2157]
[1680460908591,10.0,20.582,20.57,110.2157]
[1680460918893,10.0,20.584,20.57,110.2157]
[1680460919098,10.0,20.582,20.57,110.2157]
[1680460919589,22.48,20.58,20.57,110.2157]
[1680460919795,10.0,20.578,20.57,110.2157]
[1680460923205,17.0,20.579,20.57,110.2157]
[1680460928514,10.0,20.578,20.57,110.2157]